Cogmind - Beta 12 @@@ ROGUE MODE // 2023.04.03 @ 01:19:50 Player: Red Box Result: Destroyed by L-31 Rogue with Katana Performance ------------- Evolutions (2) 1000 Regions Visited (10) 2000 Robots Destroyed (186) 930 Value Destroyed (7246) 7246 Prototype IDs (7) 140 Alien Tech Used (0) 0 Bonus (1611) 1611 TOTAL SCORE: 12927 Bonus ------- High Alert Combat Kills 1083 Follower Combat Kills 153 Entered Garrisons 400 Friendly Fire -25 Cogmind --------- Core Integrity 0/550 Matter 82/300 Energy 175/280 System Corruption 3% Temperature Hot (207) Movement Rolling (135) Ox3 Location -8/Garrison Parts ------- > --- POWER (1) -------- Heavy Ion Engine > --- PROPULSION (2) --- Armored Wheel Armored Wheel > --- UTILITY (6) ------ Huge Storage Unit Improved Targeting Computer System Shield > --- WEAPON (2) ------- Shock Bomb Launcher > --- INVENTORY (25) --- Armored Treads Armored Wheel Cryofiber Web Large Storage Unit Core Analyzer Improved Weapon Cycler Improved Weapon Cycler Reflective Plating Improved Focal Shield Advanced Shield Generator Advanced System Shield Shock Rifle Heavy EM Shotgun Tesla Rifle Variable Charge Gun Plasma Cannon Plasma Cannon Plasma Cannon Plasma Cannon Flak Cannon Advanced Assault Cannon Hypervelocity Gauss Cannon Great Maul Peak State ------------ > --- POWER ------------ Heavy Ion Engine > --- PROPULSION ------- Armored Treads Armored Treads > --- UTILITY ---------- Cryofiber Web Huge Storage Unit Improved Targeting Computer Improved Weapon Cycler Hacking Suite System Shield > --- WEAPON ----------- Flak Cannon Flak Cannon > --- INVENTORY -------- Armored Treads Large Storage Unit Compact Matter Pod Core Analyzer Recoil Stabilizer Improved Weapon Cycler Improved Focal Shield Advanced Shield Generator Advanced System Shield Improved EM Shotgun Shock Rifle Heavy EM Shotgun Tesla Rifle Spread Laser Variable Charge Gun Plasma Cannon Plasma Cannon Plasma Cannon Plasma Cannon Assault Cannon Advanced Assault Cannon Hypervelocity Gauss Cannon Shock Bomb Launcher Heavy Missile Launcher Great Maul [Rating: 43] Favorites ----------- Power Improved Ion Engine Engine Improved Ion Engine Propulsion Armored Treads Treads Armored Treads Leg Aluminum Leg Wheel Compact Wheel Utility Improved Targeting Computer Device Improved Heat Sink Storage Huge Storage Unit Processor Improved Targeting Computer Hackware System Shield Protection Medium Armor Plating Weapon Flak Cannon Energy Gun Spread Laser Energy Cannon Plasma Cannon Ballistic Cannon Flak Cannon Launcher Shock Bomb Launcher Impact Weapon Great Maul Slashing Weapon Katana Special Melee Weapon Datajack Build | -11 -10 -10 -9 -9 -9 -8 -8 -8 -8 -8 ------- Run | Jun Mat Min Mat Min Exi Min Mat Gar Mat Gar Slots Evolved 4 | . . . 2 . . . 2 . . . Power . | . . . . . . . . . . . Propulsion . | . . . . . . . . . . . Utility 4 | . . . 2 . . . 2 . . . Weapon . | . . . . . . . . . . . Parts Attached 165 | 9 17 1 25 2 2 . 47 31 24 7 Power 14 | 1 2 . 4 . . . 4 1 2 . Engine 14 | 1 2 . 4 . . . 4 1 2 . Core . | . . . . . . . . . . . Reactor . | . . . . . . . . . . . Propulsion 25 | 4 4 . 4 . . . 4 2 7 . Treads 9 | . . . . . . . 2 2 5 . Leg 2 | 2 . . . . . . . . . . Wheel 14 | 2 4 . 4 . . . 2 . 2 . Hover . | . . . . . . . . . . . Flight . | . . . . . . . . . . . Utility 41 | 2 3 1 7 . . . 16 5 7 . Device 19 | 1 1 1 2 . . . 6 4 4 . Storage 6 | 1 2 . 1 . . . 2 . . . Processor 1 | . . . 1 . . . . . . . Hackware 4 | . . . . . . . 3 1 . . Protection 11 | . . . 3 . . . 5 . 3 . Artifact . | . . . . . . . . . . . Weapon 85 | 2 8 . 10 2 2 . 23 23 8 7 Energy Gun 28 | 2 6 . 5 . . . 13 . 1 1 Energy Cannon 11 | . . . . . . . . 10 . 1 Ballistic Gun . | . . . . . . . . . . . Ballistic Cannon 32 | . 1 . 5 . 2 . 7 8 6 3 Launcher 8 | . . . . . . . . 5 1 2 Special Weapon . | . . . . . . . . . . . Impact Weapon 2 | . 1 . . . . . 1 . . . Slashing Weapon 3 | . . . . 1 . . 2 . . . Piercing Weapon . | . . . . . . . . . . . Special Melee Weapon 1 | . . . . 1 . . . . . . Unidentified Prototypes 2 | . . . . . . . 1 . 1 . Parts Lost 28 | . 1 . 5 . . . 13 3 1 5 Power 3 | . . . 1 . . . 1 1 . . Propulsion 7 | . 1 . 2 . . . 3 1 . . Utility 12 | . . . 1 . . . 6 1 1 3 Weapon 6 | . . . 1 . . . 3 . . 2 Highest Loss Streak 9 | . 1 . 1 . . . 9 1 1 5 To Critical Strikes . | . . . . . . . . . . . Average Slot Usage (%) 97 | . 99 100 99 100 83 100 96 97 98 98 Engine 9 | . 14 14 11 11 11 11 8 9 8 9 Treads 10 | . . . . . . . 15 17 15 . Wheel 9 | . 27 28 21 22 22 22 2 . 1 18 Device 13 | . 14 14 10 11 11 11 13 16 12 8 Storage 10 | . 14 14 11 11 11 11 9 9 9 9 Processor 8 | . . . 10 11 11 11 9 9 9 9 Hackware 8 | . . . . . . . 10 15 17 9 Protection 6 | . . . 11 11 11 11 8 1 6 17 Energy Gun 8 | . 26 28 20 . . . 8 . . 3 Energy Cannon 1 | . . . . . . . . 7 . 1 Ballistic Cannon 9 | . . . 1 22 1 22 9 10 17 11 Naked Turns . | . . . . . . . . . . . Heaviest Build 116 | 12 32 32 107 107 107 107 115 116 113 114 Greatest Support 40 | 20 32 32 32 32 32 32 40 40 40 24 Greatest Overweight (x) 8 | 1 1 . 3 3 3 3 5 2 8 4 Average Overweight (x) 1 | . . . 1 3 2 3 1 2 2 4 Largest Inventory Capacity 25 | 8 15 15 25 25 25 25 25 25 25 25 Average Capacity 21 | 7 13 15 18 25 25 25 20 25 25 25 Most Carried 25 | 8 15 15 25 25 25 24 25 25 25 25 Average Carried 19 | 5 11 15 16 24 24 23 18 20 24 24 Final Capacity 25 | 8 15 15 25 25 25 25 25 25 25 25 Final Carried 25 | 8 15 15 24 25 22 24 23 25 25 23 Class Distribution -------------------- 67% | Mutant 32% | Hacker-Mutant Dominant Class ---------------- Mutant | -10/Materials Mutant | -10/Mines Mutant | -9/Materials Mutant | -9/Mines Mutant | -9/Exiles Mutant | -8/Mines Mutant | -8/Materials Hacker-Mutant | -8/Garrison Hacker-Mutant | -8/Materials Mutant | -8/Garrison Resources | -11 -10 -10 -9 -9 -9 -8 -8 -8 -8 -8 ----------- Run | Jun Mat Min Mat Min Exi Min Mat Gar Mat Gar Matter Collected 4610 | 280 160 46 360 124 . 93 1482 1083 844 138 Remotely . | . . . . . . . . . . . Salvage Created 4301 | 132 357 110 985 206 . 74 987 504 781 165 Parts 319 | 8 25 14 78 13 . 10 59 51 50 11 Haulers Intercepted 5 | . 1 . 3 . . . . . 1 . Recyclers Shooed 3 | 1 . . . 1 . . 1 . . . Parts Field Recycled . | . . . . . . . . . . . Retrieved Matter . | . . . . . . . . . . . Parts Self-Destructed . | . . . . . . . . . . . Prevented . | . . . . . . . . . . . Kills | -11 -10 -10 -9 -9 -9 -8 -8 -8 -8 -8 ------- Run | Jun Mat Min Mat Min Exi Min Mat Gar Mat Gar Combat Hostiles Destroyed 156 | . 9 7 28 9 . 5 40 28 19 11 Guns 49 | . 6 7 25 . . . 11 . . . Cannons 82 | . . . 2 9 . 5 29 18 15 4 AOE 24 | . 2 . 1 . . . . 10 4 7 Classes Destroyed 15 | 2 5 . 3 . . . . 3 2 . Worker 4 | . 1 . . . . . 2 . 1 . Tunneler 2 | 2 . . . . . . . . . . Hauler 5 | . 1 . 3 . . . . . 1 . Recycler 2 | 1 . . . . . . . . 1 . Mechanic 2 | . . . . . . . . . 2 . Watcher 15 | . 3 . 4 . . . 4 1 3 . Swarmer 56 | . 6 5 6 4 . 3 9 14 2 7 Cutter 2 | . . . . . . . . 2 . . Grunt 51 | . 3 2 9 4 . 1 19 2 9 2 Brawler 9 | . . . 1 1 . . 2 2 2 1 Duelist 6 | . . . 2 . . 1 1 . 2 . Protector 1 | . . . . . . . . . 1 . Sentry 26 | . . . 10 . . . 9 4 3 . Hunter 1 | . . . . . . . . 1 . . Programmer 4 | . . . . . . . . 3 . 1 Best Kill Streak 9 | 3 4 4 6 5 . 3 8 9 6 7 Combat Bots Only 9 | . 3 4 6 5 . 3 6 9 4 7 Max Kills in Single Turn 6 | 1 2 1 2 2 . 1 2 4 6 2 Gunslinging 1 | . . . . . . . 1 . . . Exploded 4 | . 2 . 1 . . . . 4 4 2 Melee . | . . . . . . . . . . . Uniques/NPCs Destroyed . | . . . . . . . . . . . Combat | -11 -10 -10 -9 -9 -9 -8 -8 -8 -8 -8 -------- Run | Jun Mat Min Mat Min Exi Min Mat Gar Mat Gar Damage Taken 6115 | . 372 158 761 86 . 94 1951 1115 723 855 Core 871 | . 122 25 135 . . 14 261 81 134 99 Absorbed by Shields 502 | . . . . . . . 502 . . . Regen/Repaired (Parts) 1182 | . 6 . 160 . . . 164 . 852 . Core Remaining (%) 67 | 100 . 41 . . . 62 . . . . Volleys Fired 440 | 8 46 13 68 9 . 9 121 90 50 26 Largest 2 | 2 2 2 2 2 . 2 2 2 2 2 Hottest 160 | 90 90 130 130 88 . 88 130 160 88 88 Shots Fired 797 | 16 87 26 133 18 . 18 229 133 98 39 Gun 312 | 16 83 26 119 . . . 60 . . 8 Cannon 465 | . 4 . 14 18 . 18 169 121 95 26 Launcher 20 | . . . . . . . . 12 3 5 Special . | . . . . . . . . . . . Kinetic 410 | . 4 . 14 18 . 18 169 70 95 22 Thermal 309 | 16 51 26 119 . . . 42 51 . 4 Explosive 8 | . . . . . . . . 6 . 2 Electromagnetic 70 | . 32 . . . . . 18 6 3 11 Robot Hit Streak 34 | 2 12 5 34 6 . 14 16 18 11 5 Robot Miss Streak 10 | 4 8 6 7 5 . 7 10 8 8 7 Penetration Max . | . . . . . . . . . . . Secondary Targets 4 | . . . 3 . . . 1 . . . Max Gunslinging Chain 1 | . . . 1 . . . 1 . . . Shots Hit Robots 600 | 7 44 25 115 15 . 17 198 71 87 21 Core Hits 670 | 4 19 24 161 23 . 17 215 68 113 26 Critical Kills . | . . . . . . . . . . . Critical Parts Destroyed . | . . . . . . . . . . . Critical Strikes 3 | . 1 . 1 . . . 1 . . . Burn 1 | . 1 . . . . . . . . . Blast 1 | . . . 1 . . . . . . . Corrupt 1 | . . . . . . . 1 . . . Melee Attacks 10 | . 4 . . . . . 6 . . . Impact 6 | . 4 . . . . . 2 . . . Slashing 4 | . . . . . . . 4 . . . Piercing . | . . . . . . . . . . . Sneak Attacks . | . . . . . . . . . . . Combat Hostiles . | . . . . . . . . . . . Follow-up Attacks . | . . . . . . . . . . . Damage Inflicted 11951 | 96 661 252 1821 293 . 231 3670 1920 2006 1001 Guns 3123 | 96 537 252 1595 . . . 643 . . . Cannons 6568 | . . . 165 293 . 231 3027 1127 1439 286 Explosions 2260 | . 124 . 61 . . . . 793 567 715 Melee . | . . . . . . . . . . . Ramming . | . . . . . . . . . . . Kinetic 6292 | . . . 165 293 . 231 3027 851 1439 286 Thermal 3214 | 96 531 252 1595 . . . 464 276 . . Explosive 1402 | . . . . . . . . 742 213 447 Electromagnetic 1043 | . 130 . 61 . . . 179 51 354 268 Impact . | . . . . . . . . . . . Slashing . | . . . . . . . . . . . Piercing . | . . . . . . . . . . . Highest Corruption 3 | . . . 2 2 2 2 . 1 1 3 Average Corruption 1 | . . . 2 2 2 2 . 1 1 2 Corruption Purged . | . . . . . . . . . . . Corruption Blocked . | . . . . . . . . . . . Effects 85 | . . . 17 12 8 6 . 20 18 4 Message Errors 22 | . . . 5 3 1 1 . 2 9 1 Matter Fused 25 | . . . 8 2 1 1 . 9 3 1 Heat Flow Errors 11 | . . . 2 3 2 . . . 3 1 Energy Discharges 8 | . . . 1 1 1 1 . 3 1 . Parts Fused 1 | . . . . . 1 . . . . . Data Loss (minor) 13 | . . . 1 2 2 3 . 3 2 . Data Loss (major) 1 | . . . . 1 . . . . . . Misfires 2 | . . . . . . . . 1 . 1 Alerts 1 | . . . . . . . . 1 . . Weapon Failures 1 | . . . . . . . . 1 . . Overload Shots . | . . . . . . . . . . . Overflow Damage 91 | . . . 7 . . . . 17 . 67 Projectiles 22 | . . . . . . . . 17 . 5 Explosions 69 | . . . 7 . . . . . . 62 Melee . | . . . . . . . . . . . Knockbacks 167 | . . . . 11 . 11 91 18 29 7 Impact . | . . . . . . . . . . . Kinetic 153 | . . . . 8 . 11 83 17 28 6 Secondary 14 | . . . . 3 . . 8 1 1 1 Self-Inflicted Damage 297 | . 36 . 43 . . . . 23 117 78 Shots 11 | . 1 . 1 . . . . 1 4 4 Rammed . | . . . . . . . . . . . Targets Rammed . | . . . . . . . . . . . Kicked . | . . . . . . . . . . . Crushed . | . . . . . . . . . . . Highest Temperature 378 | 132 225 378 310 241 233 6 257 320 180 315 Average Temperature 83 | 61 68 153 85 110 100 3 65 120 64 111 Received Heat Transfer 1902 | . 99 57 255 9 . 27 858 147 243 207 Effects 7 | . . . 4 . . . 1 2 . . Energy Bleed 1 | . . . . . . . 1 . . . Interference 6 | . . . 4 . . . . 2 . . Siege Activations . | . . . . . . . . . . . Robots Corrupted . | . . . . . . . . . . . Combat Hostiles . | . . . . . . . . . . . Parts Fried 2 | . . . . . . . . . 2 . Impact Corruptions . | . . . . . . . . . . . Robots Melted 1 | . 1 . . . . . . . . . Combat Hostiles 1 | . 1 . . . . . . . . . Parts Melted 7 | . 5 . 1 . . 1 . . . . Heat Transferred 4981 | 260 1277 315 2015 . . . 614 500 . . Parts Sabotaged . | . . . . . . . . . . . Parts Stolen . | . . . . . . . . . . . Parts Stripped . | . . . . . . . . . . . Power Chain Reactions 4 | . 2 . . . . . . . 2 . Missiles Intercepted . | . . . . . . . . . . . Alert | -11 -10 -10 -9 -9 -9 -8 -8 -8 -8 -8 ------- Run | Jun Mat Min Mat Min Exi Min Mat Gar Mat Gar Peak Influence 2734 | 15 281 196 397 199 . 111 445 2734 1495 1143 Initial 1332 | . 9 11 . 109 . . . 62 1332 872 Average 527 | 8 105 68 191 66 . 52 155 1375 1357 954 Maximum Alert Level 5 | . 1 . 1 . . . 2 5 4 4 Low Security (%) 51 | 100 76 100 54 100 . 100 69 7 . . Level 1 16 | . 23 . 45 . . . 25 1 . . Level 2 3 | . . . . . . . 4 7 . . Level 3 7 | . . . . . . . . 30 . 97 Level 4 13 | . . . . . . . . 16 100 2 Level 5 7 | . . . . . . . . 37 . . High Security . | . . . . . . . . . . . Max Security . | . . . . . . . . . . . Squads Dispatched 13 | . 2 . 3 . . . 4 . 4 . Investigation 3 | . 1 . 2 . . . . . . . Extermination . | . . . . . . . . . . . Reinforcement 4 | . 1 . 1 . . . 1 . 1 . Assault 2 | . . . . . . . . . 2 . Garrison 4 | . . . . . . . 3 . 1 . Intercept . | . . . . . . . . . . . Searches Triggered . | . . . . . . . . . . . Construction Impeded . | . . . . . . . . . . . Haulers Reinforced . | . . . . . . . . . . . Active Scanning Responses . | . . . . . . . . . . . Cargo Convoy Interrupts . | . . . . . . . . . . . Stealth | -11 -10 -10 -9 -9 -9 -8 -8 -8 -8 -8 --------- Run | Jun Mat Min Mat Min Exi Min Mat Gar Mat Gar Distress Signals 10 | . 1 . 2 1 . . 4 1 1 . Communications Jammed . | . . . . . . . . . . . Distress Signals . | . . . . . . . . . . . Times Spotted 235 | . 18 7 45 9 . 6 66 28 40 16 Peak Tracking Total 11 | . 4 5 6 4 . 3 7 4 5 11 Tactical Retreats 11 | . 2 1 . . . . 4 1 3 . Traps | -11 -10 -10 -9 -9 -9 -8 -8 -8 -8 -8 ------- Run | Jun Mat Min Mat Min Exi Min Mat Gar Mat Gar Traps Triggered 10 | . . . . . . . 1 8 1 . Indirectly . | . . . . . . . . . . . Trap Hack Attempts . | . . . . . . . . . . . Triggered . | . . . . . . . . . . . Disarmed . | . . . . . . . . . . . Reprogrammed . | . . . . . . . . . . . Reused . | . . . . . . . . . . . Traps Extracted . | . . . . . . . . . . . Installed 2 | . . . . . . . . 2 . . Triggered . | . . . . . . . . . . . Most Traps Carried 6 | . . . . . . . . 6 . . Machines | -11 -10 -10 -9 -9 -9 -8 -8 -8 -8 -8 ---------- Run | Jun Mat Min Mat Min Exi Min Mat Gar Mat Gar Machines Disabled 24 | . 1 . 1 . . . 1 14 6 1 Max in Single Turn 4 | . 1 . 1 . . . 1 4 2 1 Garrison Relay 9 | . . . . . . . . 8 . 1 Machines Repaired . | . . . . . . . . . . . Machines Sabotaged . | . . . . . . . . . . . Overloaded Fab Kills . | . . . . . . . . . . . Hacking | -11 -10 -10 -9 -9 -9 -8 -8 -8 -8 -8 --------- Run | Jun Mat Min Mat Min Exi Min Mat Gar Mat Gar Machines Accessed 48 | . 10 . 16 1 1 . 13 2 5 . Terminals 30 | . 7 . 10 . . . 8 2 3 . Fabricators . | . . . . . . . . . . . Repair Stations 6 | . 1 . 2 . . . 2 . 1 . Recycling Units 5 | . 2 . 2 . . . 1 . . . Scanalyzers 3 | . . . 2 . . . 1 . . . Garrison Access 2 | . . . . . . . 1 . 1 . Total Hacks 183 | . 33 . 49 1 1 . 68 3 28 . Successful 130 | . 27 . 34 1 1 . 45 2 20 . Failed 52 | . 5 . 15 . . . 23 1 8 . Catastrophic 3 | . . . 1 . . . 1 1 . . Database Lockouts 1 | . 1 . . . . . . . . . Manual 97 | . 26 . 21 . . . 42 1 7 . Terminals 100 | . 22 . 27 . . . 39 3 9 . Fabricators . | . . . . . . . . . . . Repair Stations 37 | . 2 . 10 . . . 7 . 18 . Recycling Units 24 | . 9 . 6 . . . 9 . . . Scanalyzers 16 | . . . 6 . . . 10 . . . Garrison Access 4 | . . . . . . . 3 . 1 . Terminal Hacks 28 | . 6 . 8 1 1 . 9 2 1 . Record 1 | . . . . . 1 . . . . . Robot Analysis 12 | . 2 . 5 . . . 5 . . . Prototype ID Bank 2 | . 1 . 1 . . . . . . . Open Door 2 | . . . . 1 . . . 1 . . Branch Access Points 1 | . . . 1 . . . . . . . Emergency Access Points 1 | . . . . . . . . 1 . . Terminal Index 2 | . 1 . . . . . 1 . . . Unreport Threat 4 | . . . 1 . . . 2 . 1 . Locate Traps 2 | . 1 . . . . . 1 . . . Recall Reinforcements 1 | . 1 . . . . . . . . . Fabricator Hacks . | . . . . . . . . . . . Repair Station Hacks 33 | . 2 . 10 . . . 6 . 15 . Scan Component 17 | . 1 . 5 . . . 3 . 8 . Repair 16 | . 1 . 5 . . . 3 . 7 . Recycling Unit Hacks 7 | . 2 . 3 . . . 2 . . . Report Inventory 4 | . 2 . 1 . . . 1 . . . Retrieve Components 3 | . . . 2 . . . 1 . . . Scanalyzer 15 | . . . 6 . . . 9 . . . Insert Component 7 | . . . 3 . . . 4 . . . Analyze 8 | . . . 3 . . . 5 . . . Garrison Access Hacks 2 | . . . . . . . 1 . 1 . Unlock Access 2 | . . . . . . . 1 . 1 . Unauthorized Hacks 45 | . 17 . 7 . . . 18 . 3 . Terminals 31 | . 11 . 5 . . . 12 . 3 . Track 7 | . 2 . 1 . . . 4 . . . Assimilate 5 | . 4 . . . . . 1 . . . Botnet 13 | . 4 . 2 . . . 5 . 2 . Detonate 1 | . . . 1 . . . . . . . Disrupt 1 | . . . . . . . 1 . . . Operators 4 | . 1 . 1 . . . 1 . 1 . Fabricators . | . . . . . . . . . . . Repair Stations . | . . . . . . . . . . . Recycling Units 12 | . 6 . 2 . . . 4 . . . Monitor 1 | . . . . . . . 1 . . . Reject 4 | . 2 . 1 . . . 1 . . . Recyclers 2 | . 1 . . . . . 1 . . . Mask 4 | . 2 . 1 . . . 1 . . . Tunnel 1 | . 1 . . . . . . . . . Scanalyzers . | . . . . . . . . . . . Garrison Access 2 | . . . . . . . 2 . . . Broadcast 1 | . . . . . . . 1 . . . Watchers 1 | . . . . . . . 1 . . . Data Cores Recovered . | . . . . . . . . . . . Used . | . . . . . . . . . . . Hacking Detections 42 | . 10 . 15 . . . 12 2 3 . Full Trace Events 2 | . . . 2 . . . . . . . Feedback Events . | . . . . . . . . . . . Feedback Blocked . | . . . . . . . . . . . Robot Schematics Acquired . | . . . . . . . . . . . Robots Built . | . . . . . . . . . . . Authchips . | . . . . . . . . . . . Time . | . . . . . . . . . . . Total Robot Build Rating . | . . . . . . . . . . . Part Schematics Acquired 6 | . . . 3 . . . 3 . . . Parts Built . | . . . . . . . . . . . Authchips . | . . . . . . . . . . . Time . | . . . . . . . . . . . Total Part Build Rating . | . . . . . . . . . . . Parts Repaired 16 | . 1 . 5 . . . 3 . 7 . Time 618 | . 13 . 186 . . . 127 . 292 . Parts Recycled . | . . . . . . . . . . . Recycled Matter . | . . . . . . . . . . . Retrieved Matter . | . . . . . . . . . . . Retrieved Components 12 | . . . 11 . . . 1 . . . Parts Scanalyzed 7 | . . . 3 . . . 4 . . . Part Schematics Acquired 6 | . . . 3 . . . 3 . . . Parts Damaged 1 | . . . 1 . . . . . . . Bothacking | -11 -10 -10 -9 -9 -9 -8 -8 -8 -8 -8 ------------ Run | Jun Mat Min Mat Min Exi Min Mat Gar Mat Gar Used RIF Installer . | . . . . . . . . . . . Robots Hacked . | . . . . . . . . . . . Non-combat . | . . . . . . . . . . . Combat . | . . . . . . . . . . . Robot Hacks Applied . | . . . . . . . . . . . Relay Couplers Released 35 | . . . . . . . . 30 . 5 Machine Destruction 35 | . . . . . . . . 30 . 5 Fabnet Peak Effective % . | . . . . . . . . . . . Robots Rewired 3 | . . . . . . . . 3 . . Allies Hacked 2 | . . . . . . . . 2 . . Hacks Repelled 1 | . . . . . . . . 1 . . Allies | -11 -10 -10 -9 -9 -9 -8 -8 -8 -8 -8 -------- Run | Jun Mat Min Mat Min Exi Min Mat Gar Mat Gar Total Allies 11 | . 1 . . 4 . . 1 5 . . Largest Group 4 | . 1 1 1 4 4 3 1 3 3 . Highest-Rated Group 71 | . 10 10 10 71 71 40 16 55 15 . Highest-Rated Ally 31 | . 10 10 10 31 31 16 16 25 5 . Total Orders 23 | . 4 2 8 . . . 4 5 . . STAY 12 | . 2 1 4 . . . 2 3 . . FOLLOW 11 | . 2 1 4 . . . 2 2 . . Ally Attacks 55 | . . . . 4 . 16 17 3 15 . Total Damage 674 | . . . . 56 . 173 227 153 65 . Kills 7 | . . . . . . 1 3 2 1 . Allies Corrupted . | . . . . . . . . . . . Allies Melted . | . . . . . . . . . . . Intel | -11 -10 -10 -9 -9 -9 -8 -8 -8 -8 -8 ------- Run | Jun Mat Min Mat Min Exi Min Mat Gar Mat Gar Robot Analysis Total 12 | . 2 . 5 . . . 5 . . . Derelict Logs Recovered 3 | . . 2 . 1 . . . . . . Drone Launches . | . . . . . . . . . . . Drone Recoveries . | . . . . . . . . . . . Exploration | -11 -10 -10 -9 -9 -9 -8 -8 -8 -8 -8 ------------- Run | Jun Mat Min Mat Min Exi Min Mat Gar Mat Gar Turns Passed 19214 | 114 1489 581 2554 970 523 754 6257 3814 1964 194 Spaces Moved 8324 | 50 1119 539 1548 587 379 482 1972 1056 513 79 Core 6 | 6 . . . . . . . . . . Treads 3048 | . . . . . . . 1589 1056 403 . Legs 38 | 38 . . . . . . . . . . Wheels 5232 | 6 1119 539 1548 587 379 482 383 . 110 79 Hover . | . . . . . . . . . . . Flight . | . . . . . . . . . . . Fastest Speed 50 | 50 80 100 115 145 130 145 145 330 150 150 Average Speed 189 | 112 91 100 125 145 133 145 257 330 291 150 Slowest Speed 330 | 120 100 100 145 145 145 145 330 330 330 150 Overloaded Moves . | . . . . . . . . . . . Propulsion Burnouts . | . . . . . . . . . . . Robots Hopped . | . . . . . . . . . . . Cave-ins Triggered . | . . . . . . . . . . . Exploration Rate (%) 74 | 3 98 96 98 99 87 92 84 94 42 25 Regions Visited 10 Branch Regions 4 Pre-discovered Areas 4 | . 1 . . 3 . . . . . . Known Exits Taken 4 | . . . 1 . . 1 1 . 1 . Unknown Exits Taken 5 | 1 1 1 . 1 1 . . . . . Scrap Searched 4 | . . 1 . 2 . 1 . . . . Spaces Dug 15 | . 4 . . . . . 11 . . . Terrain Destroyed 60 | . 12 . 1 . . . 11 25 5 6 Melee 7 | . 1 . . . . . 6 . . . Projectile 9 | . 3 . 1 . . . 5 . . . AOE 44 | . 8 . . . . . . 25 5 6 Terrain Rammed . | . . . . . . . . . . . Walls Destroyed . | . . . . . . . . . . . Machines Disabled . | . . . . . . . . . . . Actions | -11 -10 -10 -9 -9 -9 -8 -8 -8 -8 -8 --------- Run | Jun Mat Min Mat Min Exi Min Mat Gar Mat Gar Total 10938 | 88 1497 555 2020 689 402 519 2912 1244 897 115 Wait 1720 | 12 271 2 334 83 5 27 690 9 286 1 Move 8315 | 49 1118 538 1547 586 378 481 1971 1055 513 79 Hop . | . . . . . . . . . . . Pick Up 139 | 8 20 . 32 5 7 2 42 15 8 . Fast Attach 36 | 9 5 . 2 . . . 5 1 13 1 Attach 44 | . 3 . 11 . 2 . 18 4 5 1 Detach 7 | . 2 . . . . . 3 . 2 . Swap 85 | . 9 1 12 2 . . 24 26 6 5 Drop 102 | 2 19 1 14 4 10 . 32 9 9 2 Fire 440 | 8 46 13 68 9 . 9 121 90 50 26 Melee 10 | . 4 . . . . . 6 . . . Ram . | . . . . . . . . . . . Kick . | . . . . . . . . . . . Crush . | . . . . . . . . . . . Escape Stasis 14 | . . . . . . . . 14 . . Rewire 24 | . . . . . . . . 19 5 . Trap 2 | . . . . . . . . 2 . . Miscellaneous . | . . . . . . . . . . . Route ------- -11/Junkyard -10/Materials (discovered 4 exits: *Mat x3 / [*Min]) -10/Mines (discovered 2 exits: *Mat x2) -9/Materials (discovered 5 exits: *Mat x3 / *Min x2) -9/Mines (discovered 3 exits: *Mat x2 / *Exi) -9/Exiles -8/Mines (discovered 2 exits: *Mat x2) -8/Materials (discovered 3 exits: [*Fac x2] / Gar) -8/Garrison (discovered 4 exits: *Mat x4) -8/Materials (discovered 2 exits: [*Fac] / Gar) -8/Garrison History --------- Turn | Location | Event 13 | -11/Junkyard | Discovered new exit (range 16) 115 | -11/Junkyard | Entered Materials 293 | -10/Materials | Discovered new exit (range 15) 310 | -10/Materials | Build established: Mutant 700 | -10/Materials | Discovered new exit (range 12) 992 | -10/Materials | Discovered new exit (range 14) 1026 | -10/Materials | Central database locked down 1144 | -10/Materials | Discovered new exit (range 14) 1467 | -10/Materials | Repaired Com. Wheel 1604 | -10/Materials | Entered Mines 1604 | -10/Mines | Accompanied by 1 ally 1611 | -10/Mines | Met a Derelict bent on vengeance 1702 | -10/Mines | Discovered new exit (range 5) 1759 | -10/Mines | Core integrity fell below 50% 1835 | -10/Mines | Learned location of 1 exit from Materials 1853 | -10/Mines | Discovered new exit (range 14) 1978 | -10/Mines | Learned Materials trap positions 2185 | -10/Mines | Entered Materials 2185 | -9/Materials | Accompanied by 1 ally 2185 | -9/Materials | Evolved 2 slots: Utility x2 2186 | -9/Materials | Identified exit to Materials 2187 | -9/Materials | Loaded intel: 20 trap records 3011 | -9/Materials | Repaired Com. Wheel 3092 | -9/Materials | Identified exit to Mines 3260 | -9/Materials | Repaired Broken Adv. Beam Cannon 3293 | -9/Materials | Repaired Spread Laser 3332 | -9/Materials | Repaired Imp. Heat Sink 3425 | -9/Materials | Discovered exit to Materials (range 15) 3645 | -9/Materials | Discovered exit to Materials (range 7) 4707 | -9/Materials | Repaired Com. Wheel 4739 | -9/Materials | Entered Mines 4740 | -9/Mines | Learned location of Storage (-7) 4845 | -9/Mines | Learned location of Zion (-6) 4889 | -9/Mines | Deemed a non-threat by the Exiles lab entrance 4889 | -9/Mines | Discovered new exit (range 5) 5174 | -9/Mines | Met a Derelict who couldn't figure out how to use a Trap Extractor 5224 | -9/Mines | Discovered exit to Materials (range 8) 5279 | -9/Mines | Discovered exit to Materials (range 10) 5468 | -9/Mines | Assisted by bots powering up and referring to "LRC-V3" 5519 | -9/Mines | Escorted by a lone wolf Derelict 5709 | -9/Mines | Entered Exiles 5709 | -9/Exiles | Found Exiles lab abandoned 5709 | -9/Exiles | Accompanied by 4 allies 6196 | -9/Exiles | Discovered new exit (range 10) 6232 | -9/Exiles | Entered Mines 6232 | -8/Mines | Accompanied by 3 allies 6739 | -8/Mines | Discovered exit to Materials (range 5) 6969 | -8/Mines | Discovered exit to Materials (range 13) 6986 | -8/Mines | Entered Materials 6986 | -8/Materials | Accompanied by 1 ally 6986 | -8/Materials | Evolved 2 slots: Utility x2 7174 | -8/Materials | Garrison activated, responded to threat 7267 | -8/Materials | Identified exit to Garrison 7638 | -8/Materials | Discovered new exit (range 15) 7857 | -8/Materials | Lost 9 parts (1p2n4u2w) 9688 | -8/Materials | Repaired Core Analyzer 10339 | -8/Materials | Repaired Med. Armor Plating 10398 | -8/Materials | Build established: Hacker-Mutant 11898 | -8/Materials | Discovered new exit (range 10) 11920 | -8/Materials | Build established: Mutant 13180 | -8/Materials | Repaired Hvy. Ion Engine 13243 | -8/Materials | Entered Garrison 13243 | -8/Garrison | Accompanied by 1 ally 13316 | -8/Garrison | Triggered checkpoint 13360 | -8/Garrison | Garrison Relay disabled 13383 | -8/Garrison | Rescued a captive Derelict 13384 | -8/Garrison | Rescued a captive Derelict 13595 | -8/Garrison | Core integrity fell below 50% 13770 | -8/Garrison | Triggered checkpoint 13796 | -8/Garrison | Triggered checkpoint 13900 | -8/Garrison | Destroyed 9 combat bots 13908 | -8/Garrison | Triggered checkpoint 14032 | -8/Garrison | Triggered checkpoint 14206 | -8/Garrison | Garrison Relay disabled 14285 | -8/Garrison | Discovered new exit (range 9) 14498 | -8/Garrison | Build established: Hacker-Mutant 14842 | -8/Garrison | Discovered new exit (range 10) 15019 | -8/Garrison | Triggered checkpoint 15391 | -8/Garrison | Discovered new exit (range 14) 15546 | -8/Garrison | Triggered checkpoint 15647 | -8/Garrison | Garrison Relay disabled 15950 | -8/Garrison | Triggered checkpoint 16310 | -8/Garrison | Triggered checkpoint 16352 | -8/Garrison | Discovered new exit (range 3) 17057 | -8/Garrison | Entered Materials 17057 | -8/Materials | Accompanied by 3 allies 17287 | -8/Materials | Repaired Arm. Treads 17326 | -8/Materials | Repaired Flak Cannon 17440 | -8/Materials | Repaired Flak Cannon 17457 | -8/Materials | First assault squad dispatched 17505 | -8/Materials | Repaired Broken Hvy. Ion Engine? 17636 | -8/Materials | Repaired Flak Cannon 18458 | -8/Materials | Repaired Arm. Treads 18497 | -8/Materials | Repaired Arm. Treads 18706 | -8/Materials | Core integrity fell below 20% 18872 | -8/Materials | Discovered new exit (range 10) 18967 | -8/Materials | Garrison activated, responded to threat 19021 | -8/Materials | Identified exit to Garrison 19021 | -8/Materials | Entered Garrison 19076 | -8/Garrison | Triggered checkpoint 19128 | -8/Garrison | Garrison Relay disabled 19196 | -8/Garrison | Triggered checkpoint 19197 | -8/Garrison | Triggered checkpoint 19215 | -8/Garrison | Destroyed by L-31 Rogue with Katana Last Messages --------------- 19198_ Recoil Stabilizer destroyed. 19199_ Reflective Plating destroyed. 19200_ S-10 Pest destroyed. 19202_ BEXX| 9YCS4|Z0,>T&YVK8XF=RX| 19204_ Dropped Com. Matter Pod. 19205_ Extracted 115 matter. 19205_ Destroyed Flight Unit. 19205_ S-10 Pest destroyed. 19205_ Destroyed Flight Unit. 19205_ S-10 Pest destroyed. 19205_ Destroyed Flight Unit. 19205_ G-47 Trooper knocked back. 19208_ Hvy. Missile Launcher destroyed. 19209_ G-47 Trooper destroyed. 19212_ Flak Cannon destroyed. 19212_ Destroyed Flight Unit. 19213_ Hrd. Medium Armor Plating destroyed. 19214_ The unstable cave ceiling collapses. 19214_ S-10 Pest destroyed. 19214_ B-36 Bruiser destroyed. Map ----- +----------------------------------------------------+ | ?????????????????????????????????#!!! #??????????? | | ?????????????????????????????????#"! ^#??????????? | | ?????????????????????????????????#"# #??????????? | | ?????????????????????????????????### #??????????? | | ???????????????????????????????????# #??????????? | | ???????????????????????????????????# #??????????? | | ?????????????????????????????????### #??????????? | | ???????????????????????????####### #??????????? | | ???????????????????????????# " * #??????????? | | ???????????????????????????# ##### #??????????? | | ???????????????????????????# #???### #??????????? | | ?????????????????????????###;####### =############ | | ?????????????????????????# * * | | ?????????????????????????# | | ?????????????????????????# | | ?????????????????????????# ##################### | | ?????????????????????????# #???????????????????? | | ?????????????????????????# #???????????????????? | | ?????????????????????????# #???????????????????? | | ?????????????????????????# #???????????????????? | | ???????????????????####??# ##??????????????????? | | ???????????????????# ## #??????????????????? | | ??????????????## ## gg# #???????????????????? | | ?????????????## ####### #??????????? | | ????????? #??????????? | | ????????? @l #??????????? | | ???????????#### ## #!% ####???????????????? | | ??????????????#????# # ##??????????????????? | | ????????????????? g ??????????????????? | | ??????????????? %% #?????????????????? | | ??????????????" #?????????????????? | | ??????????????" ? g #?????????????????? | | ??????????????# ## ?# ###?????????????????? | | ??????????????# ?# ?? #???????????????????? | | ????????????? ?? ?? ???????????????????? | | ????????????? ?? ??? ???????????????????? | | ?????????????????? ??? ??????????????????? | | ????????????????? ##"""???#####??????????????????? | | ?????????????????????????????????????????????????? | | ?????????????????????????????????????????????????? | | ?????????????????????????????????????????????????? | | ?????????????????????????????????????????????????? | | ?????????????????????????????????????????????????? | | ?????????????????????????????????????????????????? | | ?????????????????????????????????????????????????? | | ?????????????????????????????????????????????????? | | ?????????????????????????????????????????????????? | | ?????????????????????????????????????????????????? | | ?????????????????????????????????????????????????? | | ?????????????????????????????????????????????????? | +----------------------------------------------------+ Best States ------------- Heat Dissipation 45 Energy Generation 14 Energy Capacity 280 Matter Stores 300 Matter Capacity 300 Sight Range 16 Terrain Scan Range 16 Terrain Scan Density 10 Base Temperature (-) 100 Armor Coverage 600 Resistance: TH 10 Weapon Cycling 20 Evasion (%) 55 Targeting Accuracy 6 Recoil Reduction 6 Offensive Hacking 10 Defensive Hacking 10 Item Schematics ----------------- Adv. Beam Cannon | -9/Materials | Scanalyzed Hvy. Ion Engine | -9/Materials | Scanalyzed Lrg. Storage Unit | -9/Materials | Scanalyzed Core Analyzer | -8/Materials | Scanalyzed Hvy. Missile Launcher | -8/Materials | Scanalyzed Arm. Treads | -8/Materials | Scanalyzed Robot Schematics ------------------ None Fabricated ------------ Nothing Alien Tech Used ----------------- None Achievements -------------- None Challenges ------------ None Game ------ Seed MappingImprinterGuard Manual? 0 Play Time 01:50:55 Cumulative 600.6 hours Start 2023.04.02 @ 23:00:51 End 2023.04.03 @ 01:19:50 Sessions 1 Manual Loads 0 Difficulty Rogue Special Mode None Game No. 417 Rogue 417 Adventurer 0 Explorer 0 Win Type - Total 1 Types 1/0/0/0/0/0/0/0/0 Lore% 70 Gallery% 78 Achievement% 58 Wizard Run 0 Options --------- ASCII 0 Keyboard 0 Movement Mouse Keybinds 0 Fullscreen 1 Font 16/SmallcapsGlow Map View 75x55 Tactical HUD 1 Map Filters NONE Filters NONE Steam 1 RUN: 709a61d6-31f2-4e35-90cd-9baf3574187b